bitfinex/quotes_SOLUSD_20240918
["timestamp","ask_amount","ask_price","bid_price","bid_amount"]
[1726673605563,7.8427,127.51,127.47,9.66461955]
[1726673605982,7.8427,127.51,127.47,8.09588]
[1726673606279,7.8427,127.51,127.47,9.66461945]
[1726673607177,23.59636367,127.53,127.48,9.41303627]
[1726673607178,7.842,127.52,127.48,9.41303627]
[1726673607365,7.842,127.52,127.49,1.56856191]
[1726673607877,7.8415,127.53,127.49,9.41226191]
[1726673608082,20.0,127.52,127.49,9.41226191]
[1726673608657,7.8415,127.53,127.49,9.41226191]
[1726673608986,7.8415,127.53,127.5,0.25098]
[1726673610359,7.9505092,127.54,127.5,27.4507]
[1726673610577,0.1096092,127.54,127.51,9.66180263]
[1726673610770,0.1096092,127.54,127.52,1.56824044]
[1726673611170,0.1096092,127.54,127.52,7.8418]
[1726673611383,0.1096092,127.54,127.52,1.56822117]
[1726673611579,0.1096092,127.54,127.51,8.09318]
[1726673612475,0.1096092,127.54,127.52,1.5681472]
[1726673612784,0.1096092,127.54,127.52,9.4099472]
[1726673613370,0.1096092,127.54,127.53,8.09218]
[1726673613594,0.1096092,127.54,127.52,1.5681472]
[1726673613595,0.1096092,127.54,127.51,0.12549]
[1726673613773,0.1096092,127.54,127.52,0.12549]
[1726673614098,7.9504092,127.54,127.52,0.25098]
[1726673615391,0.1096092,127.54,127.52,0.25098]
[1726673621877,0.1096092,127.54,127.52,1.81917628]
[1726673622278,0.1096092,127.54,127.53,8.21767]
[1726673622478,0.1096092,127.54,127.53,31.994554]
[1726673623793,0.1096092,127.54,127.53,7.8412]
[1726673624004,8.17512779,127.57,127.55,50.0]
[1726673624176,0.2483114,127.58,127.57,57.8388]
[1726673624376,0.2483114,127.58,127.57,70.75897908]
[1726673624692,0.2483114,127.58,127.54,29.3558]
[1726673624892,0.2483114,127.58,127.55,7.8399]
[1726673625194,0.2483114,127.58,127.53,19.6022]
[1726673625391,0.2483114,127.58,127.51,50.0]
[1726673625775,20.0,127.59,127.51,57.8419]
[1726673625776,7.8398,127.56,127.51,57.8419]
[1726673626174,7.8398,127.56,127.52,7.8417]
[1726673626373,23.776884,127.58,127.5,35.4821]
[1726673626669,1.55443922,127.57,127.5,19.607]
[1726673627100,7.8413,127.53,127.5,19.607]
[1726673631902,7.8413,127.53,127.5,27.4501]
[1726673632373,7.8408,127.54,127.5,27.4501]
[1726673633971,7.8425,127.51,127.5,0.12549]
[1726673634175,7.8425,127.51,127.48,0.2483114]
[1726673634176,7.8429,127.51,127.48,0.2483114]
[1726673634674,7.8433,127.5,127.48,0.2483114]
[1726673637879,8.18166107,127.52,127.48,0.2483114]
[1726673637880,9.39813922,127.49,127.48,0.2483114]
[1726673638678,7.8437,127.49,127.48,0.2483114]
[1726673645578,7.8432,127.5,127.48,0.2483114]
[1726673645775,7.8427,127.51,127.48,0.2483114]
[1726673646582,8.18166107,127.52,127.48,0.2483114]
[1726673647091,7.8437,127.49,127.48,0.2483114]
[1726673648116,7.8433,127.5,127.48,0.2483114]
[1726673649191,7.8437,127.49,127.48,0.2483114]
[1726673650490,8.18166107,127.52,127.48,0.2483114]
[1726673650688,7.8427,127.51,127.48,0.2483114]
[1726673651616,8.18166107,127.52,127.48,0.2483114]
[1726673651617,7.8437,127.49,127.48,0.2483114]
[1726673651995,27.8437,127.49,127.48,0.2483114]
[1726673652821,46.95663922,127.56,127.48,0.2483114]
[1726673652822,48.72543583,127.73,127.49,70.55883148]
[1726673653008,60.917334,127.91,127.49,70.55883148]
[1726673653009,8.08299454,128.28,128.15,10.0]
[1726673653226,16.5825,128.3,127.67,1.2189]
[1726673653227,16.5825,128.3,127.84,0.93860621]
[1726673653228,0.4252656,128.16,127.84,0.93860621]
[1726673653397,0.4252656,128.16,128.15,50.0]
[1726673653599,1.1253602,128.28,128.15,50.0]
[1726673653600,355.94232179,128.33,128.16,38.94362886]
[1726673653797,355.94232179,128.33,128.15,130.34649679]
[1726673653798,14.27404941,128.33,128.17,50.6903043]
[1726673653996,243.29625007,128.27,128.19,38.27056597]
[1726673654295,393.02909622,128.36,128.13,0.4984747]
[1726673654296,358.47512188,128.22,128.2,67.91128679]
[1726673654494,358.47512188,128.22,128.19,38.31014252]
[1726673654495,393.02909621,128.22,128.19,38.31014252]
[1726673654804,10.0,128.35,128.18,7.4749024]
[1726673654805,4.67733465,128.21,128.18,7.4749024]
[1726673655012,7.8003,128.2,128.18,7.4749024]
[1726673655211,7.8039,128.14,128.13,20.63241003]
[1726673655514,7.8039,128.14,128.12,40.098128]
[1726673655515,27.3138,128.14,128.12,35.541528]
[1726673655721,27.3138,128.14,128.12,24.655128]
[1726673656016,7.8088,128.06,128.05,0.4984747]
[1726673656918,7.8088,128.06,128.05,0.3744747]
[1726673657117,27.8088,128.06,128.05,0.3744747]
[1726673660209,39.0337,128.1,127.97,0.4984747]
[1726673660210,20.0,128.02,127.98,0.37647]
[1726673660615,7.8131,127.99,127.98,0.37647]
[1726673661098,27.8131,127.99,127.98,0.37647]
[1726673662816,27.8131,127.99,127.98,0.12549]
[1726673663513,27.8131,127.99,127.97,0.4984747]
[1726673663718,20.0,127.98,127.97,0.4984747]
[1726673664605,20.0,127.98,127.97,7.47e-05]
[1726673664927,7.8131,127.99,127.97,7.47e-05]
[1726673665808,7.8131,127.99,127.97,0.2510547]
[1726673666043,7.8131,127.99,127.97,7.47e-05]
[1726673666044,20.0,127.98,127.97,7.47e-05]
[1726673667815,20.0,127.98,127.8,72.1818613]
[1726673667816,36.38522459,127.52,127.51,3.721e-05]
[1726673668034,36.38522459,127.52,127.36,0.4984747]
[1726673668035,36.38522459,127.52,127.36,8.661e-05]
[1726673668036,19.86648,127.45,127.36,8.661e-05]
[1726673668321,19.74189,127.45,127.44,45.7775613]
[1726673668509,0.25098,127.52,127.44,91.5551226]
[1726673668825,39.2153,127.51,127.44,46.65259484]
[1726673669014,7.8455,127.46,127.44,45.7775613]
[1726673669210,23.776884,127.59,127.44,45.7775613]
[1726673669211,20.0,127.54,127.5,0.87503354]
[1726673669530,1.2016,127.63,127.49,9.49880766]
[1726673669531,7.8425,127.51,127.49,9.49880766]
[1726673669729,20.0,127.61,127.46,50.0]
[1726673669730,7.8434,127.5,127.46,50.0]
[1726673669943,27.8364,127.61,127.52,50.0]
[1726673670236,9.0371,127.63,127.53,51.56795973]
[1726673670422,1.2016,127.63,127.53,50.0]
[1726673670618,9.0371,127.63,127.53,50.0]
[1726673670814,7.8378,127.59,127.51,0.53014044]
[1726673671016,9.0372,127.63,127.54,0.12549]
[1726673671216,9.0372,127.63,127.54,0.25098]
[1726673671419,29.0840432,127.62,127.51,0.53014044]
[1726673671621,20.0,127.6,127.51,50.53014044]
[1726673671931,25.15620416,127.59,127.51,50.53014044]
[1726673672127,1.2016,127.63,127.51,50.53014044]
[1726673672329,0.12549,127.62,127.51,50.53014044]
[1726673672531,1.79586513,127.62,127.51,50.53014044]
[1726673672709,1.79586513,127.62,127.51,58.37234044]
[1726673673021,1.79586513,127.62,127.55,50.0]
[1726673673225,1.79586513,127.62,127.57,7.8387]
[1726673673439,1.79586513,127.62,127.58,9.40497485]
[1726673673609,1.79586513,127.62,127.59,0.37647]
[1726673673937,1.79586513,127.62,127.59,8.21377]
[1726673674114,1.79586513,127.62,127.6,0.12549]
[1726673674432,9.69388264,127.61,127.59,0.25098]
[1726673674614,9.69279346,127.6,127.59,0.25098]
[1726673675235,1.79586513,127.62,127.61,7.8363]
[1726673675835,1.79586513,127.62,127.59,8.08808]
[1726673676012,1.79586513,127.62,127.61,7.8363]
[1726673676412,1.79586513,127.62,127.61,8.08728]
[1726673677341,1.79586513,127.62,127.58,19.5944]
[1726673677543,1.79586513,127.62,127.59,1.56746181]
[1726673677846,1.79586513,127.62,127.58,19.5944]
[1726673678141,1.79586513,127.62,127.6,7.8367]
[1726673679138,1.79586513,127.62,127.61,0.25098]
[1726673680933,1.79586513,127.62,127.6,7.8367]
[1726673682928,1.79586513,127.62,127.58,27.432]
[1726673683144,1.79586513,127.62,127.54,69.601]
[1726673683316,1.79586513,127.62,127.58,7.8382]
[1726673683636,1.79586513,127.62,127.57,19.5962]
[1726673684325,1.79586513,127.62,127.61,7.96179]
[1726673684521,1.79586513,127.62,127.61,29.77989282]
[1726673684725,2.19846279,127.63,127.62,8.08668]
[1726673684930,2.19846279,127.63,127.62,8.21217]
[1726673685333,2.19846279,127.63,127.62,8.08668]
[1726673685647,2.19846279,127.63,127.6,19.5916]
[1726673686015,2.19846279,127.63,127.61,7.8363]
[1726673686447,2.19846279,127.63,127.6,19.5916]
[1726673686448,2.19846279,127.63,127.62,7.8357]
[1726673686634,2.19846279,127.63,127.62,8.08668]
[1726673687150,2.19846279,127.63,127.62,8.21217]
[1726673688259,2.19846279,127.63,127.62,0.37647]
[1726673688560,2.19846279,127.63,127.62,8.21217]
[1726673690145,2.19846279,127.63,127.62,28.21217]
[1726673690445,2.19846279,127.63,127.62,123.9897313]
[1726673690646,2.19846279,127.63,127.62,8.21217]
[1726673690843,2.19846279,127.63,127.62,58.21217]
[1726673691552,2.19846279,127.63,127.62,97.39097]
[1726673692248,2.19846279,127.63,127.62,164.73500472]
[1726673692450,0.4984747,127.7,127.69,7.8314]
[1726673692640,0.4984747,127.7,127.68,19.5801]
[1726673693341,0.4984747,127.7,127.69,7.8314]
[1726673693732,0.4984747,127.7,127.69,8.20787]
[1726673694927,0.4984747,127.7,127.69,7.95689]
[1726673695133,2.29433983,127.7,127.66,0.25098]
[1726673695529,2.29433983,127.7,127.66,8.08408]
[1726673695854,1.79586513,127.69,127.65,27.418]
[1726673696753,1.79586513,127.69,127.65,19.5843]
[1726673696963,1.79586513,127.69,127.68,7.95749]
[1726673697256,1.79586513,127.69,127.68,0.12549]
[1726673697832,1.79586513,127.69,127.68,0.25098]
[1726673698053,1.79586513,127.69,127.67,7.8325]
[1726673699151,1.79586513,127.69,127.67,19.581]
[1726673699465,1.79586513,127.69,127.68,0.25098]
[1726673699754,1.79586513,127.69,127.68,8.08298]
[1726673699950,1.79586513,127.69,127.68,8.20847]
[1726673700153,0.4984747,127.7,127.69,7.8314]
[1726673700460,0.4984747,127.7,127.69,57.35239256]
[1726673700829,0.4984747,127.7,127.69,58.91802533]
[1726673701036,0.4984747,127.7,127.69,118.07532533]
[1726673701234,0.4984747,127.7,127.69,116.50969256]
[1726673701863,0.4984747,127.7,127.69,0.37647]
[1726673702544,0.4984747,127.7,127.69,8.20787]
[1726673702752,0.4984747,127.7,127.68,7.8318]
[1726673702948,2.29433983,127.7,127.64,22.723186]
[1726673703152,2.29433983,127.7,127.66,19.5828]
[1726673703357,2.29433983,127.7,127.65,50.0]
[1726673703571,2.29433983,127.7,127.62,95.7775613]
[1726673703758,2.29433983,127.7,127.67,7.8326]
[1726673703956,2.29433983,127.7,127.66,27.4157]
[1726673704154,10.12573983,127.7,127.66,19.5825]
[1726673704774,10.12573983,127.7,127.66,27.4156]
[1726673705059,2.29433983,127.7,127.68,27.411]
[1726673705445,2.29433983,127.7,127.69,0.25098]
[1726673705862,2.29433983,127.7,127.69,8.20787]
[1726673706058,0.4984747,127.7,127.69,8.20787]
[1726673707564,0.4984747,127.7,127.69,29.77362448]
[1726673708949,0.4984747,127.78,127.69,29.77362448]
[1726673708950,0.4984747,127.78,127.76,7.8271]
[1726673709149,0.4984747,127.78,127.77,1.56514383]
[1726673709667,2.29433983,127.78,127.72,0.12549]
[1726673710364,10.12033983,127.78,127.74,0.12549]
[1726673710762,7.8266,127.77,127.74,0.12549]
[1726673712463,2.29433983,127.78,127.75,0.25098]
[1726673712667,2.29433983,127.78,127.76,0.12549]
[1726673712849,2.29433983,127.78,127.77,8.20297]
[1726673713460,9.04374992,127.78,127.77,8.20297]
[1726673713758,0.4984747,127.78,127.76,0.25098]
[1726673713968,0.4984747,127.78,127.74,0.37647]
[1726673714378,7.8265,127.77,127.74,0.37647]
[1726673714552,8.3245747,127.78,127.74,8.20477]
[1726673714868,8.3245747,127.78,127.74,0.37647]
[1726673714869,7.8276,127.76,127.74,0.37647]
[1726673715056,0.4984747,127.78,127.74,0.37647]
[1726673715448,0.4984747,127.78,127.74,19.94697]
[1726673715649,0.4984747,127.78,127.76,0.37647]
[1726673715953,0.4984747,127.78,127.77,8.20297]
[1726673716357,0.4984747,127.78,127.77,9.76781469]
[1726673716673,0.4984747,127.78,127.77,0.37647]
[1726673717068,0.4984747,127.78,127.77,0.25098]
[1726673717264,0.4984747,127.78,127.77,0.37647]
[1726673717763,0.4984747,127.78,127.77,8.20297]
[1726673719062,0.4984747,127.78,127.77,58.20297]
[1726673719768,0.4984747,127.78,127.77,59.76766378]
[1726673720364,0.4984747,127.78,127.77,58.20297]
[1726673723277,0.4984747,127.78,127.77,59.76766845]
[1726673723478,0.4984747,127.78,127.77,58.20297]
[1726673723673,0.4984747,127.78,127.77,79.76766572]
[1726673724583,0.4984747,127.78,127.77,78.20297]
[1726673724753,0.4984747,127.86,127.84,0.12549]
[1726673724964,0.4984747,127.86,127.84,1.94061654]
[1726673725475,8.3194747,127.86,127.82,7.823]
[1726673725658,8.3194747,127.86,127.83,0.25098]
[1726673725865,7.8218,127.85,127.83,0.25098]
[1726673726255,7.8218,127.85,127.83,0.12549]
[1726673726583,0.4984747,127.86,127.84,0.25098]
[1726673726749,8.3196747,127.86,127.84,0.25098]
[1726673726949,1.79586513,127.85,127.78,69.5639]
[1726673727274,7.8245,127.81,127.77,7.8265]
[1726673727464,19.5574,127.83,127.75,69.5681]
[1726673727779,21.35326513,127.83,127.75,69.5681]
[1726673727979,7.8239,127.82,127.77,7.8261]
[1726673728178,7.8241,127.81,127.77,19.5661]
[1726673728480,7.8237,127.82,127.78,9.39012484]
[1726673728680,1.79586513,127.83,127.79,0.37647]
[1726673728681,7.8241,127.81,127.79,0.37647]
[1726673728895,1.79586513,127.83,127.79,0.37647]
[1726673729461,7.8241,127.81,127.79,0.37647]
[1726673730793,9.61886513,127.83,127.79,8.20167]
[1726673731010,9.61886513,127.83,127.82,0.37647]
[1726673731011,1.79586513,127.83,127.82,0.37647]
[1726673731162,1.79586513,127.83,127.78,19.5639]
[1726673731484,1.79586513,127.83,127.79,1.9410961]
[1726673731867,1.79586513,127.83,127.79,0.37647]
[1726673732274,1.79586513,127.83,127.81,0.25098]
[1726673732474,1.79586513,127.83,127.82,1.9408294]
[1726673732761,8.3196747,127.86,127.83,0.37647]
[1726673733185,7.8218,127.85,127.83,0.37647]
[1726673734963,8.3196747,127.86,127.83,0.37647]
[1726673735180,0.4984747,127.86,127.83,9.76348849]
[1726673735361,0.4984747,127.86,127.85,0.12549]
[1726673735562,0.4984747,127.86,127.85,0.37647]
[1726673735774,0.4984747,127.86,127.85,9.76206005]
[1726673737080,0.4984747,127.86,127.85,8.19807]
[1726673737993,0.4984747,127.86,127.85,9.76195124]
[1726673738167,0.4984747,127.86,127.85,8.19807]
[1726673738372,0.4984747,127.86,127.85,0.37647]
[1726673738586,0.4984747,127.86,127.85,8.19807]
[1726673739490,0.4984747,127.86,127.85,9.76195123]
[1726673739793,0.4984747,127.86,127.85,8.19807]
[1726673739990,0.4984747,127.86,127.85,58.19807]
[1726673740878,0.4984747,127.86,127.85,0.37647]
[1726673742479,0.4984747,127.86,127.85,1.9404772]
[1726673742895,0.4984747,127.86,127.85,0.37647]
[1726673744499,0.4984747,127.86,127.85,8.19807]
[1726673745089,0.4984747,127.86,127.85,9.76196385]
[1726673745286,0.4984747,127.86,127.85,0.37647]
[1726673745685,0.4984747,127.86,127.85,8.19807]
[1726673748297,0.4984747,127.86,127.85,0.37647]
[1726673748879,0.4984747,127.86,127.82,19.5586]
[1726673749087,0.4984747,127.86,127.8,50.0]
[1726673749088,7.8233,127.83,127.8,50.0]
[1726673749301,7.8225,127.84,127.81,7.824]
[1726673749683,7.8218,127.85,127.81,7.824]
[1726673750385,8.3196747,127.86,127.82,0.37647]
[1726673750592,0.4984747,127.86,127.84,0.12549]
[1726673751116,0.4984747,127.86,127.84,8.07308]
[1726673751477,0.4984747,127.86,127.85,1.68956202]
[1726673751681,0.4984747,127.86,127.85,27.75217]
[1726673752291,0.4984747,127.86,127.85,19.93057]
[1726673752505,0.4984747,127.86,127.85,8.19807]
[1726673752705,0.4984747,127.86,127.85,0.37647]
[1726673753314,8.3194747,127.86,127.85,0.25098]
[1726673754929,0.4984747,127.86,127.84,0.37647]
[1726673755425,0.3511163,127.86,127.84,0.37647]
[1726673756403,0.3511163,127.86,127.83,19.5572]
[1726673756404,0.3511163,127.86,127.85,8.19807]
[1726673756605,0.3511163,127.86,127.85,27.75217]
[1726673758638,0.3511163,127.86,127.85,0.37647]
[1726673759531,0.3511163,127.86,127.85,29.31612266]
[1726673759909,7.00249278,127.86,127.85,29.31612266]
[1726673760309,0.3511163,127.86,127.85,27.75217]
[1726673761507,0.3511163,127.86,127.85,29.31593644]
[1726673762022,0.3511163,127.86,127.85,0.37647]
[1726673762538,7.00234216,127.86,127.85,0.37647]
[1726673763220,7.00234216,127.86,127.85,8.19807]
[1726673763426,7.00234216,127.86,127.85,0.37647]
[1726673764131,0.3511163,127.86,127.85,0.37647]
[1726673764431,7.0034021,127.86,127.85,0.37647]
[1726673764634,7.0034021,127.86,127.85,8.19807]
[1726673765426,7.0034021,127.86,127.85,0.37647]
[1726673766632,7.0034021,127.86,127.85,8.19807]
[1726673767525,7.0034021,127.86,127.85,27.75217]
[1726673767732,7.00334935,127.86,127.85,27.75217]
[1726673769320,7.00334935,127.86,127.85,0.37647]
[1726673769633,7.00334935,127.86,127.85,8.19807]
[1726673769812,14.82434935,127.86,127.85,0.37647]
[1726673770012,7.00334935,127.86,127.85,0.37647]
[1726673770435,7.00334935,127.86,127.85,8.19807]
[1726673770734,0.3511163,127.86,127.85,0.37647]
[1726673771244,0.3511163,127.86,127.85,0.25098]
[1726673771537,6.99915339,127.86,127.85,0.25098]
[1726673771715,13.64676141,127.86,127.85,0.25098]
[1726673772228,13.64681372,127.86,127.85,0.25098]
[1726673773136,13.64681372,127.86,127.85,9.76220846]
[1726673774324,13.6414538,127.86,127.85,1.94060846]
[1726673774643,13.6414538,127.86,127.85,0.25098]
[1726673775016,13.6414538,127.86,127.81,7.8237]
[1726673775219,14.46400041,127.85,127.8,19.5608]
[1726673775423,6.64230041,127.84,127.81,7.8236]
[1726673775720,6.64230041,127.83,127.81,7.8236]
[1726673775929,6.64230041,127.82,127.81,7.8236]
[1726673776437,6.64230041,127.82,127.81,8.20007]
[1726673776844,6.64230041,127.82,127.81,7.8236]
[1726673777017,6.64230041,127.82,127.8,19.5608]
[1726673777221,6.64230041,127.81,127.8,19.5608]
[1726673778429,6.64230041,127.81,127.8,0.37647]
[1726673778671,6.64230041,127.81,127.78,19.5645]
[1726673778834,6.64230041,127.8,127.76,50.0]
[1726673779031,19.5566,127.84,127.76,50.0]
[1726673779032,6.64230041,127.79,127.76,50.0]
[1726673779240,6.64230041,127.78,127.74,19.5701]
[1726673779546,7.8253,127.8,127.75,7.8272]
[1726673779744,14.46464948,127.79,127.74,27.3984]
[1726673779944,6.63894948,127.78,127.74,27.3984]
[1726673780144,6.63894948,127.77,127.74,27.3984]
[1726673780445,6.63894948,127.76,127.73,7.8288]
[1726673780647,7.826,127.78,127.73,7.8288]
[1726673780851,7.8254,127.79,127.75,7.8277]
[1726673781343,7.8254,127.79,127.74,27.3986]
[1726673781645,19.5577,127.83,127.74,27.3986]
[1726673781646,14.46679329,127.78,127.74,19.5703]
[1726673782142,6.64069329,127.77,127.74,27.3986]
[1726673782325,20.0,127.82,127.74,27.3986]
[1726673782545,7.8265,127.78,127.74,19.5703]
[1726673782748,6.63938729,127.77,127.74,19.5703]
[1726673783078,7.8266,127.77,127.72,7.8294]
[1726673783438,6.63841072,127.76,127.68,50.0]
[1726673783648,6.63841072,127.76,127.67,38.1134]
[1726673783649,7.8298,127.72,127.67,19.5806]
[1726673783965,6.63532812,127.71,127.64,87.23955277]
[1726673784138,7.8309,127.7,127.65,7.9187023]
[1726673784566,20.0,127.72,127.65,0.0853023]
[1726673784868,7.8316,127.69,127.65,7.9190023]
[1726673785562,20.0,127.72,127.65,7.9190023]
[1726673785563,7.8327,127.67,127.65,0.0853023]
[1726673785764,7.8333,127.66,127.65,0.0853023]
[1726673788041,7.8328,127.67,127.65,0.0853023]
[1726673788445,27.8333,127.66,127.65,0.0853023]
[1726673788640,29.62916513,127.66,127.65,0.0853023]
[1726673791660,1.79586513,127.66,127.65,0.0853023]
[1726673793151,21.79586513,127.66,127.65,0.0853023]
[1726673793462,1.79586513,127.66,127.65,0.0853023]
[1726673793685,7.831,127.7,127.66,0.12549]
[1726673793849,1.79586513,127.7,127.66,8.20927]
[1726673794049,9.62686513,127.7,127.66,0.37647]
[1726673794575,1.79586513,127.7,127.66,8.20967]
[1726673795150,7.8317,127.69,127.65,19.6694023]
[1726673795365,7.8321,127.68,127.65,0.3362823]
[1726673795865,9.62736513,127.69,127.65,0.3362823]
[1726673796186,1.79586513,127.69,127.66,0.12549]
[1726673796469,1.79586513,127.69,127.67,8.08318]
[1726673796676,1.79586513,127.69,127.68,9.77472575]
[1726673797880,1.79586513,127.69,127.68,8.20847]
[1726673798088,1.79586513,127.69,127.68,0.37647]
[1726673798256,1.79586513,127.69,127.68,0.12549]
[1726673798453,1.79586513,127.69,127.67,8.20897]
[1726673798867,1.79586513,127.69,127.67,0.37647]
[1726673799379,1.79586513,127.69,127.67,1.94269199]
[1726673799762,1.79586513,127.69,127.66,0.12549]
[1726673800069,7.8322,127.68,127.65,0.0853023]
[1726673800379,7.8329,127.67,127.65,0.0853023]
[1726673802193,7.8333,127.66,127.65,0.0853023]
[1726673802569,27.8333,127.66,127.65,0.0853023]
[1726673802766,29.62916513,127.66,127.65,0.0853023]
[1726673804392,21.79586513,127.66,127.65,0.0853023]
[1726673804966,1.79586513,127.66,127.65,0.0853023]
[1726673805575,1.79586513,127.66,127.65,0.4617723]
[1726673808092,1.79586513,127.66,127.65,2.0283616]
[1726673808490,1.79586513,127.66,127.65,8.2956723]
[1726673809393,9.62916513,127.66,127.65,0.0853023]
[1726673810377,29.62916513,127.66,127.65,0.0853023]
[1726673811173,1.79586513,127.66,127.65,0.0853023]
[1726673811394,21.79586513,127.66,127.65,0.0853023]
[1726673811597,1.79586513,127.66,127.65,0.0853023]
[1726673813080,1.79586513,127.66,127.65,9.86223605]
[1726673813301,7.3336,127.77,127.68,0.37647]
[1726673813604,19.5697,127.75,127.68,0.37647]
[1726673813770,1.79586513,127.74,127.68,0.37647]
[1726673814682,21.79586513,127.74,127.68,0.37647]
[1726673815097,1.79586513,127.74,127.68,19.95637]
[1726673815397,1.79586513,127.74,127.7,19.5766]
[1726673815596,1.79586513,127.74,127.68,0.37647]
[1726673815597,7.8296,127.72,127.68,8.20837]
[1726673816073,1.79586513,127.74,127.68,8.20837]
[1726673816074,7.8292,127.73,127.68,8.20837]
[1726673816272,7.8292,127.73,127.69,19.5782]
[1726673816273,1.79586513,127.73,127.69,19.5782]
[1726673816472,9.62516513,127.73,127.69,19.5782]
[1726673816690,7.8297,127.72,127.68,0.37647]
[1726673816878,9.62566513,127.72,127.68,0.37647]
[1726673817198,1.79586513,127.72,127.69,7.8313]
[1726673817494,1.79586513,127.72,127.71,8.20667]
[1726673817882,1.79586513,127.72,127.71,27.78227]
[1726673818408,7.8266,127.77,127.72,8.20547]
[1726673818708,9.62246513,127.77,127.73,9.39400498]
[1726673819296,1.79586513,127.77,127.73,9.39400498]
[1726673819601,9.62246513,127.77,127.73,9.39400498]
[1726673819900,9.62246513,127.77,127.73,7.8285]
[1726673820298,9.62246513,127.77,127.72,1.9420205]
[1726673820299,7.8272,127.76,127.72,9.7714205]
[1726673820505,7.8282,127.75,127.72,0.37647]
[1726673820811,7.8282,127.75,127.68,19.5791]
[1726673820812,7.8296,127.72,127.68,19.5791]
[1726673821413,7.8296,127.72,127.68,27.4109]
[1726673821783,1.79586513,127.74,127.69,1.56607728]
[1726673821980,1.79586513,127.74,127.7,19.5767]
[1726673822289,1.79586513,127.74,127.72,19.5736]
[1726673822694,1.79586513,127.74,127.73,1.94206928]
[1726673822909,1.79586513,127.74,127.73,0.37647]
[1726673823588,1.79586513,127.74,127.73,1.94202473]
[1726673823789,1.79586513,127.74,127.73,9.77102473]
[1726673824602,8.0871103,127.78,127.74,8.20457]
[1726673824803,8.0871103,127.78,127.75,1.5653492]
[1726673825003,0.2610103,127.78,127.75,9.3925492]
[1726673825697,0.2610103,127.78,127.76,0.37647]
[1726673825903,0.2610103,127.78,127.76,9.76876174]
[1726673826096,0.2610103,127.78,127.76,1.94166174]
[1726673827819,0.2610103,127.78,127.76,0.37647]
[1726673828625,0.2610103,127.78,127.76,1.94166131]
[1726673829429,0.2610103,127.78,127.76,0.37647]
[1726673829723,0.2610103,127.78,127.76,1.94166157]
[1726673829918,0.2610103,127.78,127.76,9.76876157]
[1726673830307,0.2610103,127.78,127.77,8.20297]
[1726673831101,0.2610103,127.78,127.77,27.44024654]
[1726673832401,0.2610103,127.78,127.77,25.87546568]
[1726673832622,0.2610103,127.78,127.77,27.44031761]
[1726673832924,0.2610103,127.78,127.77,25.87546568]
[1726673833123,0.2610103,127.78,127.77,27.44026567]
[1726673835501,0.2610103,127.78,127.77,47.44026567]
[1726673835697,0.2777273,127.82,127.81,27.63528]
[1726673836008,0.2777273,127.82,127.81,96.9976355]
[1726673836212,0.2777273,127.82,127.81,95.43326568]
[1726673836725,0.2777273,127.82,127.81,45.43326568]
[1726673837103,0.2777273,127.82,127.81,0.37647]
[1726673837826,0.2777273,127.82,127.81,9.76511573]
[1726673838118,0.2777273,127.82,127.81,49.64994968]
[1726673838328,0.2777273,127.82,127.81,51.21419767]
[1726673838906,0.2777273,127.82,127.81,49.64994968]
[1726673839624,0.2777273,127.82,127.81,41.82584968]
[1726673840510,0.2777273,127.82,127.81,49.64994968]
[1726673841027,0.2777273,127.82,127.81,41.82584968]
[1726673841415,0.2777273,127.82,127.81,49.64994968]
[1726673844424,0.2777273,127.86,127.84,24.153354]
[1726673844932,0.2777273,127.86,127.85,8.19807]
[1726673845140,0.2777273,127.86,127.85,9.76206002]
[1726673845907,0.2777273,127.86,127.85,1.94046002]
[1726673846135,0.2777273,127.86,127.85,0.37647]
[1726673849840,8.0987273,127.86,127.84,23.776884]
[1726673850322,8.0987273,127.86,127.82,7.8232]
[1726673850323,7.8216,127.85,127.82,0.25098]
[1726673850716,7.8216,127.85,127.82,1.81531429]
[1726673851926,7.8216,127.85,127.83,0.12549]
[1726673852238,0.2777273,127.86,127.83,0.12549]
[1726673852239,7.8222,127.84,127.83,0.12549]
[1726673852917,0.2777273,127.86,127.83,0.12549]
[1726673852918,7.8218,127.85,127.83,0.12549]
[1726673854415,0.2777273,127.86,127.84,0.25098]
[1726673854817,0.2777273,127.86,127.84,1.8152354]